bitfinex/quotes_SOLUSD_20250809
["timestamp","ask_amount","ask_price","bid_price","bid_amount"]
[1754711892533,0.03,177.45,177.43,0.7]
[1754711894023,0.03,177.45,177.42,3.99732781]
[1754711894210,0.03,177.45,177.43,4.20741395]
[1754711894513,0.03,177.45,177.42,3.99732781]
[1754711894717,0.03,177.45,177.43,4.20731991]
[1754711895021,0.03,177.45,177.44,4.20718657]
[1754711896510,0.03,177.45,177.44,4.20708905]
[1754711897311,0.03,177.45,177.43,4.20708905]
[1754711897625,0.03,177.45,177.44,4.20708905]
[1754711899609,0.03,177.45,177.43,4.20708905]
[1754711899932,0.03,177.45,177.44,4.20708905]
[1754711900835,0.03,177.45,177.44,4.90708905]
[1754711901440,0.03,177.45,177.44,4.20708905]
[1754711904123,0.72,177.45,177.44,4.20708905]
[1754711909621,4.01732781,177.45,177.44,4.20708905]
[1754711910636,9.65271806,177.45,177.44,4.20708905]
[1754711911016,4.01732781,177.45,177.44,4.20708905]
[1754711912440,11.76052586,177.45,177.44,4.20708905]
[1754711913450,11.90268743,177.45,177.44,4.20708905]
[1754711915225,9.79487963,177.45,177.44,4.20708905]
[1754711915530,0.86216157,177.45,177.44,4.20708905]
[1754711916048,0.31432314,177.45,177.44,4.20708905]
[1754711916941,1.01432314,177.45,177.44,4.20708905]
[1754711917241,1.01432314,177.45,177.44,4.22639541]
[1754711917445,9.9470412,177.45,177.44,4.22639541]
[1754711917740,10.08920277,177.45,177.44,4.22639541]
[1754711917941,12.1960636,177.45,177.44,4.22639541]
[1754711922256,12.05390203,177.45,177.41,0.06]
[1754711922448,3.29732781,177.43,177.42,4.22403553]
[1754711923052,9.63335328,177.43,177.42,4.22403553]
[1754711925541,6.33602547,177.43,177.42,4.22403553]
[1754711926637,9.63335328,177.43,177.42,4.22403553]
[1754711927438,6.33602547,177.43,177.42,4.22403553]
[1754711927644,9.63335328,177.43,177.42,4.22403553]
[1754711929042,9.63335328,177.43,177.42,4.22209759]
[1754711929367,6.33602547,177.43,177.42,4.22209759]
[1754711929545,9.63335328,177.43,177.42,4.22209759]
[1754711929860,34.93311494,177.44,177.42,4.22209759]
[1754711930039,35.07527651,177.44,177.43,4.22209759]
[1754711931168,0.03,177.45,177.43,4.92209759]
[1754711931454,0.03,177.45,177.44,4.92209759]
[1754711932258,0.03,177.45,177.44,4.22209759]
[1754711934869,0.03,177.45,177.43,0.7]
[1754711935085,0.03,177.45,177.44,4.22089951]
[1754711939559,0.03,177.45,177.44,4.92089951]
[1754711941368,0.03,177.45,177.44,4.22089951]
[1754711942672,0.03,177.45,177.44,8.21822732]
[1754711942879,0.03,177.45,177.44,8.21772323]
[1754711946153,0.03,177.45,177.44,13.85343107]
[1754711948465,0.03,177.45,177.44,9.63303565]
[1754711948775,0.03,177.45,177.44,13.84788101]
[1754711950567,0.03,177.45,177.44,8.21217317]
[1754711951468,0.03,177.45,177.44,13.84788101]
[1754711953583,0.72,177.45,177.44,4.21484536]
[1754711953973,0.03,177.45,177.44,4.21484536]
[1754711954565,0.72,177.45,177.44,4.21194976]
[1754711956773,0.03,177.45,177.44,4.21194976]
[1754711960979,0.72,177.45,177.44,4.21194976]
[1754711962376,0.03,177.45,177.44,8.16927757]
[1754711963604,0.03,177.45,177.44,8.16923764]
[1754711964604,0.03,177.45,177.44,4.87190983]
[1754711964998,0.03,177.45,177.44,8.16923764]
[1754711972487,0.03,177.45,177.44,8.17218754]
[1754711973082,0.03,177.45,177.44,7.51218754]
[1754711973511,0.03,177.45,177.44,8.17218754]
[1754711974406,0.72,177.45,177.44,43.45485973]
[1754711975010,0.72,177.45,177.44,46.75218754]
[1754711978089,0.03,177.45,177.44,46.75218754]
[1754711983107,0.72,177.45,177.44,46.75218754]
[1754711984499,0.72,177.45,177.44,43.45485973]
[1754711984713,0.72,177.45,177.44,46.75218754]
[1754712000322,0.03,177.45,177.44,46.75218754]
[1754712001138,0.03,177.45,177.44,46.76265008]
[1754712001324,0.03,177.45,177.44,43.46532227]
[1754712001525,0.72,177.45,177.44,43.46532227]
[1754712001837,0.03,177.45,177.44,47.42265008]
[1754712002923,0.03,177.45,177.44,53.05835792]
[1754712003832,0.03,177.45,177.44,53.05795595]
[1754712004045,0.03,177.45,177.44,55.31522895]
[1754712007036,0.03,177.45,177.44,13.15795595]
[1754712007237,0.03,177.45,177.44,52.37795595]
[1754712007446,0.03,177.45,177.44,49.08062814]
[1754712007644,0.03,177.45,177.44,53.02795595]
[1754712008048,0.03,177.45,177.44,55.28535595]
[1754712009331,0.74,177.45,177.44,54.63535595]
[1754712009639,0.74,177.45,177.44,46.74224811]
[1754712010539,0.74,177.45,177.44,43.4449203]
[1754712013344,4.03732781,177.45,177.44,4.2249203]
[1754712014148,9.9570412,177.45,177.44,4.2249203]
[1754712015646,51.20541834,177.45,177.44,4.2249203]
[1754712015951,0.42648471,177.44,177.41,0.06]
[1754712016140,3.29732781,177.42,177.41,0.06]
[1754712016339,45.54002809,177.42,177.41,4.28038203]
[1754712016540,26.71,177.42,177.41,4.28038203]
[1754712017848,30.00732781,177.42,177.41,4.28038203]
[1754712018544,51.03420966,177.42,177.41,0.06]
[1754712019323,51.17637123,177.42,177.41,0.06]
[1754712020634,53.03392781,177.42,177.41,0.06]
[1754712022962,53.03392781,177.42,177.41,1e-08]
[1754712024245,92.27392781,177.42,177.41,1e-08]
[1754712024642,94.53298481,177.42,177.41,1e-08]
[1754712029171,94.56298481,177.42,177.41,1e-08]
[1754712038445,15.24837714,177.41,177.39,1e-08]
[1754712038674,59.64326153,177.4,177.39,1e-08]
[1754712038876,60.32326153,177.4,177.39,1e-08]
[1754712040771,64.10562285,177.4,177.39,1e-08]
[1754712041264,77.30669141,177.4,177.39,1e-08]
[1754712041768,66.50709742,177.4,177.39,1e-08]
[1754712042675,79.85032755,177.4,177.39,1e-08]
[1754712043044,84.31062539,177.4,177.39,1e-08]
[1754712043243,79.85032755,177.4,177.39,1e-08]
[1754712047684,62.66899185,177.4,177.39,1e-08]
[1754712047989,23.00250714,177.4,177.39,1e-08]
[1754712048273,24.04346128,177.4,177.39,0.69000001]
[1754712048788,0.03,177.42,177.39,0.69000001]
[1754712048959,5.66642256,177.42,177.39,0.69000001]
[1754712049159,3.44242871,177.41,177.39,1e-08]
[1754712049473,3.44242871,177.41,177.4,0.69]
[1754712050072,3.58459028,177.41,177.4,0.69]
[1754712050574,0.28432314,177.41,177.4,0.69]
[1754712050963,3.58459028,177.41,177.4,0.69]
[1754712051669,9.22129182,177.41,177.39,0.69000001]
[1754712051878,3.30026714,177.4,177.39,0.69000001]
[1754712055487,3.58459028,177.41,177.39,0.69000001]
[1754712056379,3.30026714,177.41,177.4,0.69]
[1754712057189,3.30026714,177.41,177.39,0.69000001]
[1754712058363,31.80852552,177.42,177.39,0.69000001]
[1754712058562,3.30026714,177.41,177.39,1e-08]
[1754712058790,3.30026714,177.4,177.39,1e-08]
[1754712060186,1.10648471,177.41,177.39,1e-08]
[1754712060379,3.30026714,177.4,177.39,1e-08]
[1754712060689,3.30026714,177.4,177.39,4.21777724]
[1754712060888,3.30026714,177.4,177.39,1e-08]
[1754712061069,3.30026714,177.4,177.39,4.21873885]
[1754712061763,3.30026714,177.4,177.39,1e-08]
[1754712061967,3.30026714,177.4,177.39,4.21883427]
[1754712062174,9.36352193,177.41,177.39,4.21883427]
[1754712062377,9.36352193,177.41,177.39,1e-08]
[1754712062967,10.04352193,177.41,177.39,1e-08]
[1754712065197,3.30026714,177.4,177.39,1e-08]
[1754712065391,47.47304707,177.4,177.39,1e-08]
[1754712066591,21.47304707,177.4,177.39,1e-08]
[1754712067585,27.11002564,177.4,177.39,1e-08]
[1754712069500,27.25218721,177.4,177.39,1e-08]
[1754712071282,29.51149921,177.4,177.39,1e-08]
[1754712071886,42.71256777,177.4,177.39,1e-08]
[1754712072680,15.53270028,177.39,177.38,0.06]
[1754712072882,74.1362772,177.39,177.38,1e-08]
[1754712073205,74.1362772,177.39,177.37,1e-08]
[1754712073502,26.96849966,177.38,177.37,1e-08]
[1754712073876,28.54832266,177.38,177.37,1e-08]
[1754712074079,29.22832266,177.38,177.37,1e-08]
[1754712076904,29.5126458,177.38,177.37,1e-08]
[1754712078511,29.50895332,177.38,177.37,1e-08]
[1754712080613,28.40246861,177.38,177.37,1e-08]
[1754712080907,26.28480718,177.38,177.37,1e-08]
[1754712081417,26.42696875,177.38,177.37,1e-08]
[1754712082407,27.10696875,177.38,177.37,1e-08]
[1754712083606,29.36653675,177.38,177.37,1e-08]
[1754712084617,29.50869832,177.38,177.37,1e-08]
[1754712085111,29.50983812,177.38,177.37,1e-08]
[1754712085895,68.78986461,177.38,177.37,1e-08]
[1754712092196,66.53029661,177.38,177.37,1e-08]
[1754712093294,66.56029661,177.38,177.37,1e-08]
[1754712111644,64.46058158,177.38,177.37,1e-08]
[1754712111819,66.56600333,177.38,177.37,1e-08]
[1754712113015,63.26573619,177.38,177.37,1e-08]
[1754712113212,66.56600333,177.38,177.37,1e-08]
[1754712114643,66.56682189,177.38,177.37,1e-08]
[1754712115443,65.88682189,177.38,177.37,1e-08]
[1754712115620,65.60249875,177.38,177.37,0.66000001]
[1754712115821,22.88007004,177.38,177.37,0.66000001]
[1754712116023,91.58249875,177.38,177.37,0.66000001]
[1754712116439,91.58249875,177.38,177.37,1e-08]
[1754712116948,91.58249875,177.38,177.37,0.66000001]
[1754712117958,91.72466032,177.38,177.37,0.66000001]
[1754712118447,91.72466032,177.38,177.37,1e-08]
[1754712120643,91.86682189,177.38,177.37,1e-08]
[1754712121650,91.86682189,177.38,177.37,4.2295565]
[1754712122438,91.86682189,177.38,177.37,4.22943631]
[1754712122851,91.86682189,177.38,177.37,1e-08]
[1754712124253,91.86682189,177.38,177.37,4.23003749]
[1754712124853,92.54682189,177.38,177.37,4.23003749]
[1754712125248,92.54682189,177.38,177.37,4.22989927]
[1754712125580,92.54730659,177.38,177.37,4.22989927]
[1754712126135,66.54730659,177.38,177.37,1e-08]
[1754712126749,65.86730659,177.38,177.37,1e-08]
[1754712127859,66.54730659,177.38,177.37,1e-08]
[1754712131151,66.54730659,177.38,177.37,4.22992634]
[1754712131352,66.54730659,177.38,177.37,1e-08]
[1754712131652,66.54730659,177.38,177.37,4.22992477]
[1754712131961,66.54730659,177.38,177.37,1e-08]
[1754712132465,63.24703945,177.38,177.37,4.22983773]
[1754712132634,2.13672501,177.38,177.37,4.92983773]
[1754712132838,0.03,177.38,177.37,4.92983773]
[1754712138079,0.03,177.38,177.37,8.23010487]
[1754712139745,0.03,177.38,177.37,4.92983773]
[1754712146097,0.03,177.38,177.37,4.92016168]
[1754712147676,0.03,177.38,177.37,13.15836082]
[1754712147873,0.03,177.38,177.37,13.85836082]
[1754712152693,0.03,177.38,177.37,8.22042882]
[1754712153867,0.03,177.38,177.37,7.52042882]
[1754712154502,0.03,177.38,177.37,4.22016168]
[1754712154679,0.03,177.38,177.37,7.52042882]
[1754712155896,0.03,177.38,177.37,13.15836082]
[1754712156116,0.03,177.38,177.37,13.83836082]
[1754712156493,0.03,177.38,177.37,8.20042882]
[1754712157318,0.03,177.38,177.37,13.83836082]
[1754712157885,0.03,177.38,177.37,8.20042882]
[1754712158193,0.03,177.38,177.37,7.52042882]
[1754712158587,0.03,177.38,177.37,8.20042882]
[1754712158906,0.03,177.38,177.37,4.22016168]
[1754712159108,0.03,177.38,177.37,7.52042882]
[1754712159700,0.69,177.38,177.37,4.22016168]
[1754712160718,0.03,177.38,177.37,7.52042882]
[1754712161079,0.03,177.38,177.37,8.20042882]
[1754712161584,0.03,177.38,177.37,7.52042882]
[1754712163904,0.03,177.38,177.37,4.22016168]
[1754712164107,0.03,177.38,177.37,7.52042882]
[1754712164496,0.69,177.38,177.37,4.22016168]
[1754712166802,0.03,177.38,177.37,4.22016168]
[1754712167108,0.69,177.38,177.37,4.22016168]
[1754712171710,6.32761416,177.38,177.37,4.22016168]
[1754712171919,24.87625844,177.38,177.37,4.22016168]
[1754712172489,26.97961907,177.38,177.37,4.22016168]
[1754712174091,27.12178064,177.38,177.37,4.22016168]
[1754712175490,27.26394221,177.38,177.37,4.22490766]
[1754712177207,53.26394221,177.38,177.37,4.22490766]
[1754712177595,27.26394221,177.38,177.37,4.22490766]
[1754712178886,27.26394221,177.38,177.37,1e-08]
[1754712182719,66.52394221,177.38,177.37,1e-08]
[1754712184416,66.52394221,177.38,177.34,0.06]
[1754712184417,15.24837714,177.37,177.34,0.06]
[1754712184602,44.54864428,177.35,177.34,1e-08]
[1754712184798,46.65200491,177.35,177.34,1e-08]
[1754712184998,47.30200491,177.35,177.34,1e-08]
[1754712185221,49.56208391,177.35,177.34,1e-08]
[1754712185605,55.34281328,177.35,177.34,1e-08]
[1754712186109,53.23945265,177.35,177.34,1e-08]
[1754712186310,55.33747978,177.35,177.34,1e-08]
[1754712188138,55.47964135,177.35,177.34,1e-08]
[1754712196522,15.24837714,177.34,177.33,1e-08]
[1754712196730,60.55667141,177.34,177.33,1e-08]
[1754712197628,66.33771873,177.34,177.33,1e-08]
[1754712198336,68.59818073,177.34,177.33,1e-08]
[1754712199036,68.59110853,177.34,177.33,1e-08]
[1754712201413,68.7632701,177.34,177.33,1e-08]
[1754712217639,41.24837714,177.31,177.3,0.06]
[1754712217838,82.59933207,177.31,177.3,0.06]
[1754712218141,85.89959921,177.31,177.3,0.06]
[1754712218353,84.85979407,177.31,177.3,0.76]
[1754712218524,88.16259916,177.31,177.3,0.76]
[1754712218725,88.16259916,177.31,177.3,0.06]
[1754712219643,93.80243898,177.31,177.3,0.06]
[1754712221437,94.08676212,177.31,177.3,0.06]
[1754712221756,94.08676212,177.31,177.3,0.76]
[1754712222722,91.99326924,177.31,177.3,0.76]
[1754712224355,94.08960877,177.31,177.3,0.76]
[1754712225455,94.08960877,177.31,177.3,0.06]
[1754712230048,94.75960877,177.31,177.3,0.06]
[1754712230707,94.76312179,177.31,177.3,0.06]
[1754712232635,99.48732749,177.31,177.3,0.06]
[1754712234155,94.47879865,177.31,177.29,0.2]
[1754712234461,26.04443438,177.3,177.29,0.2]
[1754712234654,31.6845923,177.3,177.29,0.2]
[1754712234848,33.9451813,177.3,177.29,0.2]
[1754712237660,34.08734287,177.3,177.29,0.2]
[1754712238260,34.22950444,177.3,177.29,0.2]
[1754712241344,30.9292373,177.3,177.29,0.2]
[1754712241548,34.22950444,177.3,177.29,0.2]
[1754712244571,15.24837714,177.29,177.28,0.06]
[1754712244751,62.00614406,177.29,177.28,0.06]
[1754712245067,65.3064112,177.29,177.28,0.06]
[1754712245383,67.5671282,177.29,177.28,0.06]
[1754712245685,73.20760425,177.29,177.28,0.06]
[1754712246061,73.34976582,177.29,177.28,0.06]
[1754712247573,0.14216157,177.28,177.27,0.06]
[1754712247783,21.4606584,177.28,177.27,0.06]
[1754712248285,23.86379197,177.28,177.27,0.06]
[1754712248644,28.59170634,177.28,177.27,0.06]
[1754712248850,29.50458619,177.28,177.27,0.06]
[1754712249150,34.23250056,177.28,177.27,0.06]
[1754712250256,33.56250056,177.28,177.27,1e-08]
[1754712250585,34.23250056,177.28,177.27,1e-08]
[1754712252348,33.56250056,177.28,177.27,1e-08]
[1754712252670,34.23250056,177.28,177.27,1e-08]
[1754712255262,29.50458619,177.28,177.27,1e-08]
[1754712259080,29.5025788,177.28,177.27,1e-08]
[1754712269868,34.22192601,177.28,177.27,1e-08]
[1754712272874,15.24837714,177.27,177.26,1e-08]
[1754712273186,65.29477135,177.27,177.26,1e-08]
[1754712273560,67.69816192,177.27,177.26,1e-08]
[1754712273964,73.33927434,177.27,177.26,1e-08]
[1754712277190,73.48143591,177.27,177.26,1e-08]
[1754712283805,68.763154,177.27,177.26,1e-08]
[1754712284002,73.48104881,177.27,177.26,1e-08]
[1754712284507,70.18078167,177.27,177.26,1e-08]
[1754712284693,73.48104881,177.27,177.26,1e-08]
[1754712285502,70.18078167,177.27,177.26,1e-08]
[1754712285803,67.64666929,177.27,177.26,1e-08]
[1754712285999,67.78883086,177.27,177.26,1e-08]
[1754712286201,28.54883086,177.27,177.26,1e-08]
[1754712286392,67.78883086,177.27,177.26,1e-08]
[1754712287201,72.50672567,177.27,177.26,1e-08]
[1754712288200,73.21672567,177.27,177.26,1e-08]
[1754712288907,33.97672567,177.27,177.26,1e-08]
[1754712289105,72.50672567,177.27,177.26,1e-08]
[1754712289413,68.073154,177.27,177.26,1e-08]
[1754712290305,28.833154,177.27,177.26,1e-08]
[1754712290508,72.79104881,177.27,177.26,1e-08]
[1754712291190,73.50104881,177.27,177.26,1e-08]
[1754712291908,73.50305963,177.27,177.26,1e-08]
[1754712292603,73.51066694,177.27,177.26,1e-08]
[1754712294012,68.78516482,177.27,177.26,1e-08]
[1754712297814,68.78577058,177.27,177.26,1e-08]
[1754712300715,73.51339768,177.27,177.26,1e-08]
[1754712300918,68.78577058,177.27,177.26,1e-08]
[1754712301618,73.51384473,177.27,177.26,1e-08]
[1754712302318,68.78577058,177.27,177.26,1e-08]
[1754712304022,73.5132499,177.27,177.26,1e-08]
[1754712304224,68.78577058,177.27,177.26,1e-08]
[1754712304519,73.51333567,177.27,177.26,1e-08]
[1754712305002,72.80333567,177.27,177.26,1e-08]
[1754712307521,73.52333567,177.27,177.26,1e-08]
[1754712311619,73.52536571,177.27,177.26,1e-08]
[1754712311815,73.55536571,177.27,177.26,1e-08]
[1754712319535,73.5556776,177.27,177.26,1e-08]
[1754712320034,68.82811251,177.27,177.26,1e-08]
[1754712320535,68.82798813,177.27,177.26,1e-08]
[1754712322935,73.55934263,177.27,177.26,1e-08]
[1754712324437,68.82798813,177.27,177.26,1e-08]
[1754712325138,65.52772099,177.27,177.26,1e-08]
[1754712325436,68.82798813,177.27,177.26,1e-08]
[1754712333244,41.10621557,177.25,177.24,0.06]
[1754712333436,90.74746067,177.25,177.24,0.06]
[1754712333839,93.00868867,177.25,177.24,0.06]
[1754712334738,98.65043761,177.25,177.24,0.06]
[1754712335452,98.65197532,177.25,177.24,0.06]
[1754712337029,98.79413689,177.25,177.24,0.06]
[1754712338350,99.45386864,177.25,177.24,0.06]
[1754712342053,96.1536015,177.25,177.24,0.06]
[1754712342237,99.45386864,177.25,177.24,0.06]
[1754712342438,98.79386864,177.25,177.24,0.06]
[1754712343442,94.05989311,177.25,177.24,0.06]
[1754712343642,98.79386864,177.25,177.24,0.06]
[1754712344256,94.05989311,177.25,177.24,0.06]
[1754712344454,98.79386864,177.25,177.24,0.06]
[1754712346158,99.45386864,177.25,177.24,0.06]
[1754712347860,98.79386864,177.25,177.24,0.06]
[1754712349053,94.71989311,177.25,177.24,0.06]
[1754712350163,94.05989311,177.25,177.24,0.06]
[1754712350877,94.71989311,177.25,177.24,0.06]
[1754712353280,99.45386864,177.25,177.24,0.06]
[1754712353881,94.71989311,177.25,177.24,0.06]
[1754712354280,99.45386864,177.25,177.24,0.06]
[1754712363371,99.45601042,177.25,177.24,0.06]
[1754712363571,94.71989311,177.25,177.24,0.06]
[1754712364194,99.45615428,177.25,177.24,0.06]
[1754712367596,94.71989311,177.25,177.24,0.06]
[1754712370296,99.45496695,177.25,177.24,0.06]
[1754712370603,99.4550158,177.25,177.24,0.06]
[1754712370903,99.45489223,177.25,177.24,0.06]
[1754712377005,94.71989311,177.25,177.24,0.06]
[1754712379694,94.72036482,177.25,177.24,0.06]
[1754712382011,94.72032344,177.25,177.24,0.06]
[1754712385904,94.72032344,177.25,177.22,0.06]
[1754712385905,161.54837714,177.24,177.22,0.06]
[1754712386207,41.24837714,177.21,177.2,0.06]
[1754712386393,90.58238671,177.21,177.2,0.06]
[1754712386592,99.77409192,177.21,177.2,0.06]
[1754712387187,99.77409192,177.21,177.2,0.73]
[1754712387188,35.09452436,177.21,177.2,0.73]
[1754712387384,26.14216157,177.21,177.2,0.73]
[1754712387606,146.3,177.23,177.2,0.73]
[1754712387791,149.600267,177.23,177.2,4.03026714]
[1754712387992,146.3,177.23,177.21,3.30026714]
[1754712388189,146.3,177.23,177.2,0.73]
[1754712388190,196.49102988,177.23,177.22,0.67]
[1754712388387,0.14216157,177.22,177.21,0.67]
[1754712388789,172.3,177.23,177.21,3.97026714]
[1754712389191,172.3,177.23,177.22,0.67]
[1754712391013,177.9423856,177.23,177.22,0.67]
[1754712393591,31.6423856,177.23,177.22,0.67]
[1754712395007,31.6423856,177.23,177.21,0.65]
[1754712397905,4.75827728,177.26,177.22,3.30026714]
[1754712398094,0.03,177.26,177.25,3.30026714]
[1754712398290,0.03,177.26,177.25,3.95026714]
[1754712398495,0.03,177.26,177.25,8.1687747]
[1754712401395,0.03,177.26,177.25,7.5187747]
[1754712401599,0.03,177.26,177.25,4.21850756]
[1754712401802,0.03,177.26,177.25,4.86850756]
[1754712402001,0.03,177.26,177.25,8.1687747]
[1754712402911,5.94055412,177.29,177.25,8.163311]
[1754712403089,5.94055412,177.29,177.25,3.95026714]
[1754712404507,0.68,177.28,177.25,3.95026714]
[1754712404715,5.26055412,177.29,177.25,3.95026714]
[1754712405018,5.94055412,177.29,177.25,3.95026714]
[1754712408811,5.67015792,177.3,177.26,3.95026714]
[1754712409015,8.97042506,177.3,177.27,0.65]
[1754712409393,9.65042506,177.3,177.27,0.65]
[1754712410024,9.65042506,177.3,177.26,3.95026714]
[1754712410217,0.68,177.29,177.25,3.30026714]
[1754712410617,0.68,177.28,177.25,3.95026714]
[1754712411200,0.68,177.29,177.25,3.95026714]
[1754712411401,0.68,177.29,177.26,0.65]
[1754712411921,0.68,177.29,177.25,3.95026714]
[1754712413519,0.03,177.3,177.25,8.9420046]
[1754712413723,0.03,177.3,177.26,3.95026714]
[1754712414225,0.71,177.3,177.27,0.65]
[1754712415026,0.71,177.3,177.27,3.95026714]
[1754712415412,0.03,177.3,177.27,3.95026714]
[1754712416327,0.71,177.3,177.27,0.65]
[1754712418124,0.71,177.3,177.27,3.95026714]
[1754712418334,0.71,177.3,177.27,0.65]
[1754712419411,0.03,177.3,177.28,0.65]
[1754712420513,0.03,177.3,177.28,3.95026714]
[1754712420709,0.03,177.3,177.29,3.30026714]
[1754712421219,0.03,177.3,177.29,3.95026714]
[1754712421413,0.03,177.3,177.29,8.15266237]
[1754712422217,0.03,177.3,177.29,8.16064444]
[1754712422418,0.03,177.3,177.29,8.16067347]
[1754712423223,0.03,177.3,177.29,3.95026714]
[1754712424040,0.03,177.3,177.29,9.59074319]
[1754712425735,0.03,177.3,177.29,13.79947589]
[1754712426242,0.03,177.3,177.29,9.59074319]
[1754712426736,0.03,177.3,177.29,3.30026714]
[1754712428435,0.03,177.3,177.25,0.06]
[1754712428640,3.30026714,177.29,177.26,4.20834726]
[1754712428836,0.7,177.28,177.26,4.20834726]
[1754712430228,0.7,177.28,177.25,0.06]
[1754712430434,0.7,177.28,177.25,4.26979448]
[1754712430631,32.34096642,177.28,177.25,0.06]
[1754712430829,0.7,177.27,177.25,0.06]
[1754712432645,5.64143066,177.26,177.25,0.06]
[1754712433024,6.34143066,177.26,177.25,0.06]
[1754712434948,0.7,177.26,177.25,0.06]
[1754712437242,6.34143066,177.26,177.25,0.06]
[1754712437433,9.6416978,177.26,177.25,0.06]
[1754712445528,6.34143066,177.26,177.25,0.06]
[1754712445724,2.96059,177.28,177.25,0.06]
[1754712446040,3.30026714,177.28,177.26,4.21877192]
[1754712446235,3.30026714,177.28,177.25,0.06]
[1754712446740,29.30026714,177.26,177.25,0.06]
[1754712447050,34.9416978,177.26,177.25,0.06]
[1754712447248,35.6416978,177.26,177.25,0.06]
[1754712448934,26.0,177.26,177.25,0.06]
[1754712449141,26.0,177.26,177.25,4.27858806]
[1754712449336,26.0,177.26,177.25,0.06]
[1754712449536,34.94131135,177.28,177.25,4.27862969]
[1754712449739,35.64131135,177.28,177.25,0.06]
[1754712450252,0.7,177.27,177.25,0.06]
[1754712450630,4.00026714,177.27,177.25,0.06]
[1754712450831,0.7,177.26,177.25,0.06]
[1754712452042,4.00026714,177.26,177.25,0.06]
[1754712452230,6.34143066,177.26,177.25,0.06]
[1754712452432,9.6416978,177.26,177.25,0.06]
[1754712453653,9.6016978,177.26,177.25,0.06]
[1754712454457,6.30143066,177.26,177.25,0.06]
[1754712454634,35.6016978,177.26,177.25,0.06]
[1754712454839,32.30143066,177.26,177.25,0.06]
[1754712455239,35.6016978,177.26,177.25,0.06]
[1754712456054,31.64143066,177.26,177.25,0.06]
[1754712460361,32.30143066,177.26,177.25,0.06]
[1754712460745,31.64143066,177.26,177.25,0.06]
[1754712461864,32.30143066,177.26,177.25,0.06]
[1754712464663,26.0,177.27,177.25,0.06]
[1754712464873,26.66,177.27,177.25,0.06]
[1754712466047,9.63082853,177.29,177.25,0.73]
[1754712466251,6.33056139,177.29,177.26,4.21818557]
[1754712466468,6.33056139,177.29,177.26,0.67]
[1754712466769,6.33056139,177.29,177.25,0.73]
[1754712467074,6.33056139,177.29,177.26,4.88804905]
[1754712467377,6.33056139,177.29,177.26,0.67]
[1754712468045,0.69,177.29,177.26,0.67]
[1754712468252,0.03,177.29,177.27,4.21988097]
[1754712468571,0.03,177.29,177.26,0.67]
[1754712468743,0.69,177.29,177.26,0.67]
[1754712469164,0.69,177.29,177.27,4.22095981]
[1754712469472,0.69,177.29,177.25,0.73]
[1754712469676,0.66,177.28,177.26,4.22109272]
[1754712469851,0.66,177.28,177.25,0.73]
[1754712470176,0.66,177.28,177.26,4.22109673]
[1754712470347,0.66,177.28,177.25,0.73]
[1754712470546,0.66,177.28,177.26,4.22227016]
[1754712470773,0.66,177.28,177.25,0.73]
[1754712470972,0.66,177.28,177.26,4.22227016]
[1754712471179,0.66,177.28,177.27,4.22371996]
[1754712472083,0.66,177.28,177.27,4.22529827]
[1754712473855,32.30079422,177.28,177.27,4.22529827]
[1754712474055,37.7026239,177.28,177.25,0.06]
[1754712474263,3.96026714,177.27,177.26,4.2279821]
[1754712475582,9.60137956,177.27,177.26,4.2279821]
[1754712478664,11.70375044,177.27,177.25,0.06]
[1754712478866,8.94137956,177.27,177.26,4.22911069]
[1754712479058,26.57644919,177.27,177.25,0.06]
[1754712479376,11.47042277,177.26,177.25,0.06]
[1754712479561,12.13042277,177.26,177.25,0.06]
[1754712480161,8.83015563,177.26,177.25,0.06]
[1754712480372,12.13042277,177.26,177.25,0.06]
[1754712483781,51.27042277,177.26,177.25,0.06]